fUST/lending_fUST_20260118
["ID","MTS","AMOUNT","RATE_DAILY","PERIOD"]
[402427539,1768675845972,-543.61913102,0.00016438,3]
[402427541,1768675845982,-880.59,0.00016438,3]
[402427543,1768675845991,-500.0,0.00016438,3]
[402427545,1768675846001,-1236.21,0.00016438,3]
[402427547,1768675846010,-935.44,0.00016438,3]
[402427549,1768675846019,-679.86,0.00016438,3]
[402427551,1768675846029,-500.0,0.00016438,3]
[402427553,1768675846039,-500.0,0.00016438,3]
[402427555,1768675846048,-500.0,0.00016438,3]
[402427557,1768675846057,-822.44,0.00016438,3]
[402427559,1768675846066,-500.0,0.00016438,3]
[402427561,1768675846076,-500.0,0.00016438,3]
[402427563,1768675846085,-435.20636976,0.00016438,3]
[402427565,1768675846094,-500.0,0.00016438,3]
[402427567,1768675846105,-692.88,0.00016438,3]
[402427569,1768675846114,-1263.08,0.00016438,3]
[402427571,1768675846124,-813.92,0.00016438,3]
[402427573,1768675846133,-500.0,0.00016438,3]
[402427575,1768675846145,-500.0,0.00016438,3]
[402427577,1768675846154,-500.0,0.00016438,3]
[402427579,1768675846164,-500.0,0.00016438,3]
[402427581,1768675846174,-773.3,0.00016438,3]
[402427583,1768675846183,-1573.93,0.00016438,3]
[402427585,1768675846192,-500.0,0.00016438,3]
[402427587,1768675846202,-925.02,0.00016438,3]
[402427588,1768675846212,-500.0,0.00016438,3]
[402427590,1768675846221,-500.0,0.00016438,3]
[402427593,1768675846231,-612.91517649,0.00016438,3]
[402427595,1768675846241,-500.0,0.00016438,3]
[402427597,1768675846250,-2551.07,0.00016438,3]
[402427598,1768675846260,-500.0,0.00016438,2]
[402427600,1768675846271,-500.0,0.00016438,3]
[402427602,1768675846280,-500.0,0.00016438,3]
[402427604,1768675846290,-1624.98,0.00016438,3]
[402427606,1768675846300,-500.0,0.00016438,3]
[402427608,1768675846310,-500.0,0.00016438,3]
[402427610,1768675846319,-500.0,0.00016438,3]
[402427612,1768675846329,-293.31393947,0.00016438,3]
[402427614,1768675846340,-500.0,0.00016438,3]
[402427617,1768675846350,-824.25,0.00016438,3]
[402427618,1768675846359,-595.68293991,0.00016438,3]
[402427620,1768675846369,-500.0,0.00016438,3]
[402427622,1768675846378,-500.0,0.00016438,3]
[402427624,1768675846387,-1074.68,0.00016438,3]
[402427626,1768675846406,-980.22,0.00016438,3]
[402427628,1768675846415,-500.0,0.00016438,3]
[402427630,1768675846425,-500.0,0.00016438,3]
[402427632,1768675846434,-849.33,0.00016438,3]
[402427634,1768675846445,-546.26361381,0.00016438,3]
[402427636,1768675846455,-500.0,0.00016438,3]
[402427638,1768675846464,-500.0,0.00016438,3]
[402427640,1768675846473,-500.0,0.00016438,3]
[402427641,1768675846482,-500.0,0.00016438,3]
[402427642,1768675846490,-500.0,0.00016438,3]
[402427643,1768675846499,-526.11,0.00016438,3]
[402427644,1768675846508,-901.72,0.00016438,3]
[402427645,1768675846585,-982.5,0.00016438,3]
[402427646,1768675846595,-500.0,0.00016438,3]
[402427647,1768675846603,-500.0,0.00016438,3]
[402427648,1768675846614,-682.73,0.00016438,3]
[402427649,1768675846625,-533.96,0.00016438,3]
[402427650,1768675846634,-2396.6,0.00016438,3]
[402427651,1768675846643,-500.0,0.00016438,3]
[402427652,1768675846652,-500.0,0.00016438,3]
[402427653,1768675846662,-1103.35,0.00016438,3]
[402427654,1768675846671,-738.3,0.00016438,3]
[402427655,1768675846679,-702.8,0.00016438,3]
[402427656,1768675846692,-823.13,0.00016438,3]
[402427657,1768675846700,-1173.22,0.00016438,3]
[402427658,1768675846709,-242.80022406,0.00016438,3]
[402427659,1768675846718,-500.0,0.00016438,3]
[402427660,1768675846727,-500.0,0.00016438,3]
[402427662,1768675846736,-500.0,0.00016438,3]
[402427664,1768675846745,-500.0,0.00016438,3]
[402427666,1768675846754,-500.0,0.00016438,3]
[402427668,1768675846763,-7250.78,0.00016438,3]
[402427670,1768675846772,-552.93,0.00016438,3]
[402427672,1768675846781,-1399.24,0.00016438,3]
[402427674,1768675846790,-1148.17,0.00016438,3]
[402427676,1768675846799,-500.0,0.00016438,3]
[402427678,1768675846808,-500.0,0.00016438,3]
[402427680,1768675846818,-3131.96,0.00016438,3]
[402427682,1768675846827,-876.59,0.00016438,3]
[402427684,1768675846838,-500.0,0.00016438,3]
[402427686,1768675846847,-580.93,0.00016438,3]
[402427688,1768675846856,-1568.81,0.00016438,3]
[402427690,1768675846865,-500.0,0.00016438,3]
[402427692,1768675846874,-500.0,0.00016438,3]
[402427694,1768675846883,-1569.6,0.00016438,3]
[402427696,1768675846892,-500.0,0.00016438,3]
[402427698,1768675846901,-1045.69,0.00016438,3]
[402427699,1768675846911,-500.0,0.00016438,3]
[402427701,1768675846920,-2897.63,0.00016438,3]
[402427703,1768675846929,-1000.0,0.00016438,2]
[402427705,1768675846938,-500.0,0.00016438,3]
[402427707,1768675846948,-500.0,0.00016438,3]
[402427709,1768675846958,-500.0,0.00016438,3]
[402427711,1768675846967,-2015.39,0.00016438,3]
[402427713,1768675846976,-559.48644727,0.00016438,2]
[402427715,1768675846986,-500.0,0.00016438,2]
[402427717,1768675846995,-598.89865208,0.00016438,3]
[402427719,1768675847005,-500.0,0.00016438,3]
[402427721,1768675847015,-500.0,0.00016438,3]
[402427723,1768675847024,-1285.11,0.00016438,3]
[402427725,1768675847033,-362.08497691,0.00016438,3]
[402427727,1768675847042,-585.26,0.00016438,3]
[402427729,1768675847052,-1023.93,0.00016438,3]
[402427731,1768675847061,-14376.21,0.00016438,3]
[402427733,1768675847071,-500.0,0.00016438,3]
[402427735,1768675847080,-1321.15,0.00016438,3]
[402427737,1768675847089,-500.0,0.00016438,3]
[402427739,1768675847098,-500.0,0.00016438,3]
[402427741,1768675847109,-1071.96,0.00016438,3]
[402427743,1768675847118,-785.27,0.00016438,3]
[402427745,1768675847127,-200.53732028,0.00016438,3]
[402427747,1768675847136,-539.32,0.00016438,3]
[402427749,1768675847145,-500.0,0.00016438,3]
[402427751,1768675847154,-500.0,0.00016438,2]
[402427752,1768675847164,-3987.0,0.00016503,2]
[402427754,1768675847174,-496.47127164,0.00016636,2]
[402427757,1768675847184,-2398.4119403,0.00016636,2]
[402427759,1768675847194,-3519.22103096,0.00016656,2]
[402427761,1768675847204,-3987.0,0.0001667,2]
[402427763,1768675847215,-606.47,0.00016712,3]
[402427765,1768675847225,-614.82090661,0.00016712,3]
[402427766,1768675847236,-437.89239693,0.00016712,3]
[402427768,1768675847246,-500.0,0.00016712,3]
[402427770,1768675847256,-576.96946358,0.00016712,3]
[402427772,1768675847266,-500.0,0.00016712,3]
[402427774,1768675847275,-500.0,0.00016712,3]
[402427776,1768675847284,-500.0,0.00016712,3]
[402427778,1768675847296,-500.0,0.00016712,3]
[402427780,1768675847305,-500.0,0.00016712,3]
[402427782,1768675847315,-500.0,0.00016712,3]
[402427784,1768675847324,-500.0,0.00016712,3]
[402427786,1768675847333,-500.0,0.00016712,3]
[402427788,1768675847343,-785.35,0.00016712,3]
[402427790,1768675847352,-575.03830885,0.00016712,3]
[402427792,1768675847361,-565.09862221,0.00016712,3]
[402427794,1768675847370,-500.0,0.00016712,3]
[402427796,1768675847379,-500.0,0.00016712,3]
[402427798,1768675847388,-500.0,0.00016712,3]
[402427800,1768675847397,-958.0,0.00016712,3]
[402427802,1768675847407,-945.0,0.00016712,3]
[402427804,1768675847417,-500.0,0.00016712,3]
[402427806,1768675847426,-532.00436142,0.00016712,3]
[402427808,1768675847435,-500.0,0.00016712,3]
[402427810,1768675847444,-500.0,0.00016712,3]
[402427812,1768675847454,-500.0,0.00016712,3]
[402427814,1768675847463,-500.0,0.00016712,3]
[402427816,1768675847473,-500.0,0.00016712,3]
[402427818,1768675847482,-500.0,0.00016712,3]
[402427820,1768675847491,-500.0,0.00016712,3]
[402427822,1768675847501,-547.31106992,0.00016712,3]
[402427824,1768675847512,-500.0,0.00016712,3]
[402427826,1768675847521,-500.0,0.00016712,3]
[402427828,1768675847530,-500.0,0.00016712,3]
[402427830,1768675847539,-500.0,0.00016712,3]
[402427832,1768675847548,-500.0,0.00016712,3]
[402427834,1768675847557,-500.0,0.00016712,3]
[402427836,1768675847566,-500.0,0.00016712,3]
[402427838,1768675847575,-660.71,0.00016712,3]
[402427840,1768675847584,-500.0,0.00016712,3]
[402427842,1768675847594,-717.86,0.00016712,3]
[402427844,1768675847603,-500.0,0.00016712,3]
[402427846,1768675847612,-586.64,0.00016712,3]
[402427847,1768675847628,-1050.44,0.00016712,3]
[402427850,1768675847638,-541.3847786,0.00016712,3]
[402427851,1768675847647,-500.0,0.00016712,3]
[402427853,1768675847657,-500.0,0.00016712,3]
[402427855,1768675847666,-748.64,0.00016712,3]
[402427857,1768675847676,-500.0,0.00016712,3]
[402427859,1768675847686,-500.0,0.00016712,3]
[402427861,1768675847700,-824.78,0.00016712,3]
[402427863,1768675847710,-500.0,0.00016712,3]
[402427865,1768675847720,-500.0,0.00016712,3]
[402427867,1768675847729,-500.0,0.00016712,3]
[402427869,1768675847738,-500.0,0.00016712,3]
[402427871,1768675847747,-500.0,0.00016712,3]
[402427873,1768675847756,-500.0,0.00016712,3]
[402427875,1768675847765,-500.0,0.00016712,3]
[402427877,1768675847779,-585.26643986,0.00016712,3]
[402427879,1768675847788,-644.00223298,0.00016712,3]
[402427881,1768675847797,-500.0,0.00016712,3]
[402427883,1768675847806,-629.37,0.00016712,3]
[402427885,1768675847827,-618.03,0.00016712,3]
[402427887,1768675847836,-500.0,0.00016712,3]
[402427889,1768675847846,-500.0,0.00016712,3]
[402427891,1768675847855,-785.43,0.00016712,3]
[402427893,1768675847864,-1229.27,0.00016712,3]
[402427895,1768675847872,-500.0,0.00016712,3]
[402427897,1768675847881,-503.99,0.00016712,3]
[402427899,1768675847891,-520.45827499,0.00016712,3]
[402427901,1768675847900,-617.76833614,0.00016712,3]
[402427902,1768675847909,-500.0,0.00016712,3]
[402427904,1768675847919,-1332.53,0.00016712,3]
[402427906,1768675847929,-500.0,0.00016712,3]
[402427908,1768675847938,-500.0,0.00016712,3]
[402427910,1768675847947,-500.0,0.00016712,3]
[402427912,1768675847956,-1544.82,0.00016712,3]
[402427914,1768675847966,-500.0,0.00016712,3]
[402427916,1768675847975,-500.0,0.00016712,3]
[402427918,1768675847984,-500.0,0.00016712,3]
[402427920,1768675847993,-500.0,0.00016712,3]
[402427922,1768675848002,-500.0,0.00016712,3]
[402427924,1768675848011,-500.0,0.00016712,3]
[402427926,1768675848020,-500.0,0.00016712,3]
[402427928,1768675848029,-724.87,0.00016712,3]
[402427930,1768675848038,-500.0,0.00016712,3]
[402427932,1768675848047,-500.0,0.00016712,3]
[402427934,1768675848056,-674.95746037,0.00016712,3]
[402427936,1768675848065,-500.0,0.00016712,3]
[402427938,1768675848073,-686.6,0.00016712,3]
[402427940,1768675848082,-500.0,0.00016712,3]
[402427942,1768675848091,-1363.3,0.00016712,3]
[402427944,1768675848100,-500.0,0.00016712,3]
[402427946,1768675848109,-500.0,0.00016712,3]
[402427948,1768675848118,-500.0,0.00016712,3]
[402427950,1768675848126,-500.0,0.00016712,3]
[402427952,1768675848135,-500.0,0.00016712,3]
[402427954,1768675848144,-500.0,0.00016712,3]
[402427956,1768675848154,-500.0,0.00016712,3]
[402427958,1768675848163,-500.0,0.00016712,3]
[402427960,1768675848172,-500.0,0.00016712,3]
[402427962,1768675848181,-500.0,0.00016712,3]
[402427964,1768675848190,-1486.35,0.00016712,3]
[402427966,1768675848199,-500.0,0.00016712,3]
[402427968,1768675848208,-500.0,0.00016712,3]
[402427970,1768675848217,-500.0,0.00016712,3]
[402427971,1768675848227,-565.26,0.00016712,3]
[402427973,1768675848236,-500.0,0.00016712,3]
[402427975,1768675848246,-1421.58,0.00016712,3]
[402427977,1768675848255,-596.44715493,0.00016712,3]
[402427979,1768675848265,-500.0,0.00016712,3]
[402427981,1768675848275,-500.0,0.00016712,3]
[402427983,1768675848285,-895.06,0.00016712,3]
[402427986,1768675848295,-500.0,0.00016712,3]
[402427987,1768675848304,-646.41,0.00016712,3]
[402427989,1768675848313,-500.0,0.00016712,3]
[402427991,1768675848324,-500.0,0.00016712,3]
[402427993,1768675848332,-996.79,0.00016712,3]
[402427995,1768675848341,-764.09,0.00016712,3]
[402427997,1768675848351,-525.18,0.00016712,3]
[402427999,1768675848360,-716.74,0.00016712,3]
[402428001,1768675848370,-500.0,0.00016712,3]
[402428003,1768675848379,-1323.24,0.00016712,3]
[402428005,1768675848389,-500.0,0.00016712,3]
[402428007,1768675848397,-500.0,0.00016712,3]
[402428009,1768675848407,-770.45,0.00016712,3]
[402428011,1768675848416,-500.0,0.00016712,3]
[402428013,1768675848426,-500.0,0.00016712,3]
[402428015,1768675848435,-500.0,0.00016712,3]
[402428017,1768675848444,-500.0,0.00016712,3]
[402428019,1768675848453,-500.0,0.00016712,3]
[402428021,1768675848462,-1407.33,0.00016712,3]
[402428023,1768675848471,-632.04,0.00016712,3]
[402428025,1768675848481,-1247.83,0.00016712,3]
[402428027,1768675848491,-931.88,0.00016712,3]
[402428029,1768675848502,-500.0,0.00016712,3]
[402428031,1768675848512,-500.0,0.00016712,3]
[402428033,1768675848521,-1206.36,0.00016712,3]
[402428035,1768675848531,-505.92,0.00016712,3]
[402428037,1768675848542,-500.0,0.00016712,3]
[402428038,1768675848552,-500.0,0.00016712,3]
[402428040,1768675848561,-500.0,0.00016712,3]
[402428042,1768675848570,-538.41,0.00016712,3]
[402428044,1768675848580,-500.0,0.00016712,3]
[402428046,1768675848590,-500.0,0.00016712,3]
[402428048,1768675848601,-500.0,0.00016712,3]
[402428051,1768675848622,-1150.55,0.00016712,3]
[402428052,1768675848636,-500.0,0.00016712,3]
[402428054,1768675848646,-500.0,0.00016712,3]
[402428056,1768675848655,-500.0,0.00016712,3]
[402428059,1768675848667,-989.09,0.00016712,3]
[402428060,1768675848676,-500.0,0.00016712,3]
[402428062,1768675848685,-297.32226087,0.00016712,3]
[402428064,1768675848695,-510.09347373,0.00016712,3]
[402428066,1768675848704,-975.59,0.00016712,3]
[402428068,1768675848713,-500.0,0.00016712,3]
[402428070,1768675848722,-1116.5,0.00016712,3]
[402428072,1768675848731,-500.0,0.00016712,3]
[402428074,1768675848740,-500.0,0.00016712,3]
[402428076,1768675848749,-500.0,0.00016712,3]
[402428078,1768675848758,-500.0,0.00016712,3]
[402428080,1768675848767,-390.63830152,0.00016712,3]
[402428082,1768675848776,-510.46768292,0.00016712,3]
[402428084,1768675848785,-500.0,0.00016712,3]
[402428086,1768675848794,-500.0,0.00016712,3]
[402428088,1768675848803,-509.49842469,0.00016712,3]
[402428090,1768675848812,-1352.2,0.00016712,3]
[402428092,1768675848822,-500.0,0.00016712,3]
[402428094,1768675848831,-500.0,0.00016712,3]
[402428096,1768675848840,-500.0,0.00016712,3]
[402428098,1768675848850,-626.58,0.00016712,3]
[402428100,1768675848859,-500.0,0.00016712,3]
[402428102,1768675848868,-1215.54,0.00016712,3]
[402428104,1768675848877,-500.0,0.00016712,3]
[402428106,1768675848886,-500.0,0.00016712,3]
[402428108,1768675848895,-537.14,0.00016712,3]
[402428110,1768675848904,-500.0,0.00016712,3]
[402428112,1768675848912,-870.79,0.00016712,3]
[402428114,1768675848922,-500.0,0.00016712,2]
[402428116,1768675848930,-506.03,0.00016712,3]
[402428118,1768675848939,-519.62,0.00016712,3]
[402428119,1768675848949,-510.42,0.00016712,3]
[402428121,1768675848958,-500.0,0.00016712,3]
[402428123,1768675848968,-500.0,0.00016712,2]
[402428125,1768675848977,-500.0,0.00016712,3]
[402428127,1768675848986,-500.0,0.00016712,3]
[402428129,1768675848995,-500.0,0.00016712,3]
[402428131,1768675849004,-500.0,0.00016712,3]
[402428133,1768675849013,-500.0,0.00016712,3]
[402428135,1768675849022,-206.61780172,0.00016712,3]
[402428137,1768675849032,-500.0,0.00016712,3]
[402428139,1768675849041,-500.0,0.00016712,3]
[402428141,1768675849050,-502.82,0.00016712,3]
[402428143,1768675849060,-500.0,0.00016712,3]
[402428144,1768675849070,-808.14,0.00016712,3]
[402428145,1768675849079,-500.0,0.00016712,3]
[402428146,1768675849089,-500.0,0.00016712,3]
[402428147,1768675849098,-500.0,0.00016712,3]
[402428148,1768675849108,-500.0,0.00016712,3]
[402428149,1768675849117,-1374.8,0.00016712,3]
[402428150,1768675849125,-724.63,0.00016712,3]
[402428151,1768675849134,-500.0,0.00016712,3]
[402428152,1768675849143,-500.0,0.00016712,3]
[402428153,1768675849151,-500.0,0.00016712,3]
[402428155,1768675849160,-1054.46,0.00016712,3]
[402428157,1768675849170,-500.0,0.00016712,3]
[402428159,1768675849179,-500.0,0.00016712,3]
[402428161,1768675849188,-500.0,0.00016712,3]
[402428163,1768675849197,-500.0,0.00016712,3]
[402428165,1768675849207,-500.0,0.00016712,3]
[402428167,1768675849216,-737.54,0.00016712,3]
[402428169,1768675849225,-500.0,0.00016712,3]
[402428171,1768675849235,-504.62487329,0.00016712,3]
[402428173,1768675849246,-500.0,0.00016712,3]
[402428175,1768675849255,-500.0,0.00016712,3]
[402428177,1768675849263,-500.0,0.00016712,3]
[402428179,1768675849272,-500.0,0.00016712,3]
[402428181,1768675849281,-617.55085621,0.00016712,3]
[402428183,1768675849290,-952.61,0.00016712,3]
[402428185,1768675849300,-500.0,0.00016712,3]
[402428186,1768675849310,-500.0,0.00016712,3]
[402428188,1768675849319,-503.62,0.00016712,3]
[402428190,1768675849328,-500.0,0.00016712,3]
[402428192,1768675849338,-500.0,0.00016712,3]
[402428194,1768675849347,-500.0,0.00016712,3]
[402428196,1768675849356,-979.67,0.00016712,3]
[402428198,1768675849365,-719.44,0.00016712,3]
[402428200,1768675849375,-932.18,0.00016712,3]
[402428202,1768675849384,-500.0,0.00016712,3]
[402428204,1768675849393,-500.0,0.00016712,3]
[402428206,1768675849402,-982.12,0.00016712,3]
[402428208,1768675849411,-500.0,0.00016712,3]
[402428210,1768675849420,-915.97,0.00016712,3]
[402428212,1768675849430,-514.33,0.00016712,3]
[402428214,1768675849441,-500.0,0.00016712,3]
[402428217,1768675849450,-500.0,0.00016712,3]
[402428219,1768675849461,-500.0,0.00016712,3]
[402428220,1768675849470,-822.86,0.00016712,3]
[402428223,1768675849479,-500.0,0.00016712,3]
[402428225,1768675849489,-1158.19,0.00016712,3]
[402428227,1768675849498,-500.0,0.00016712,3]
[402428229,1768675849507,-183.181997,0.00016712,2]
[402428231,1768675849517,-183.181997,0.00016712,2]
[402428233,1768675849526,-500.0,0.00016712,3]
[402428235,1768675849537,-183.181997,0.00016712,2]
[402428237,1768675849548,-183.181997,0.00016712,2]
[402428239,1768675849557,-183.181997,0.00016712,2]
[402428241,1768675849567,-183.181997,0.00016712,2]
[402428243,1768675849576,-183.181997,0.00016712,2]
[402428245,1768675849585,-183.181997,0.00016712,2]
[402428247,1768675849596,-500.0,0.00016712,3]
[402428249,1768675849605,-500.0,0.00016712,3]
[402428251,1768675849617,-500.0,0.00016712,3]
[402428253,1768675849628,-500.0,0.00016712,3]
[402428255,1768675849637,-1545.23,0.00016712,3]
[402428257,1768675849646,-500.0,0.00016712,3]
[402428259,1768675849656,-1920.93,0.00016712,3]
[402428261,1768675849665,-536.54,0.00016712,3]
[402428263,1768675849674,-500.0,0.00016712,3]
[402428265,1768675849689,-304.69534223,0.00016712,3]
[402428267,1768675849698,-1564.12,0.00016712,3]
[402428269,1768675849707,-500.0,0.00016712,3]
[402428271,1768675849718,-1132.13,0.00016712,3]
[402428273,1768675849728,-500.0,0.00016712,3]
[402428275,1768675849738,-500.0,0.00016712,3]
[402428278,1768675849748,-512.95426722,0.00016712,3]
[402428280,1768675849758,-500.0,0.00016712,3]
[402428282,1768675849767,-652.64,0.00016712,3]
[402428283,1768675849776,-500.0,0.00016712,3]
[402428285,1768675849785,-1416.4,0.00016712,3]
[402428288,1768675849795,-500.0,0.00016712,3]
[402428290,1768675849804,-500.0,0.00016712,3]
[402428292,1768675849813,-500.0,0.00016712,3]
[402428294,1768675849823,-1075.4,0.00016712,3]
[402428296,1768675849835,-500.0,0.00016712,3]
[402428298,1768675849845,-500.0,0.00016712,3]
[402428300,1768675849854,-1096.32,0.00016712,3]
[402428302,1768675849863,-500.0,0.00016712,3]
[402428304,1768675849872,-586.69345544,0.00016712,3]
[402428306,1768675849882,-500.0,0.00016712,3]
[402428308,1768675849891,-752.51,0.00016712,3]
[402428310,1768675849901,-500.0,0.00016712,3]
[402428312,1768675849910,-500.0,0.00016712,3]
[402428314,1768675849919,-500.0,0.00016712,3]
[402428316,1768675849929,-500.0,0.00016712,3]
[402428318,1768675849938,-500.0,0.00016712,3]
[402428320,1768675849947,-500.0,0.00016712,3]
[402428322,1768675849956,-500.0,0.00016712,3]
[402428324,1768675849965,-500.0,0.00016712,3]
[402428326,1768675849975,-657.67,0.00016712,3]
[402428328,1768675849984,-500.0,0.00016712,3]
[402428331,1768675849994,-500.0,0.00016712,3]
[402428333,1768675850003,-500.0,0.00016712,3]
[402428335,1768675850012,-500.0,0.00016712,3]
[402428337,1768675850023,-500.0,0.00016712,3]
[402428339,1768675850033,-784.82,0.00016712,3]
[402428341,1768675850042,-500.0,0.00016712,3]
[402428343,1768675850051,-625.18,0.00016712,3]
[402428345,1768675850061,-500.0,0.00016712,3]
[402428347,1768675850070,-500.0,0.00016712,3]
[402428349,1768675850080,-1000.0,0.00016712,2]
[402428351,1768675850089,-500.0,0.00016712,3]
[402428353,1768675850099,-1239.89,0.00016712,3]
[402428355,1768675850109,-584.81708203,0.00016712,3]
[402428357,1768675850119,-500.0,0.00016712,3]
[402428359,1768675850128,-1672.89,0.00016712,3]
[402428361,1768675850137,-652.44,0.00016712,3]
[402428363,1768675850147,-500.0,0.00016712,3]
[402428365,1768675850157,-1667.11,0.00016712,3]
[402428368,1768675850169,-620.35,0.00016712,3]
[402428370,1768675850181,-1466.89,0.00016712,3]
[402428372,1768675850190,-500.0,0.00016712,3]
[402428374,1768675850200,-500.0,0.00016712,3]
[402428376,1768675850209,-500.0,0.00016712,3]
[402428378,1768675850218,-500.0,0.00016712,3]
[402428380,1768675850228,-500.0,0.00016712,3]
[402428382,1768675850237,-500.0,0.00016712,3]
[402428384,1768675850247,-500.0,0.00016712,3]
[402428386,1768675850256,-500.0,0.00016712,2]
[402428388,1768675850265,-1430.32,0.00016712,3]
[402428390,1768675850275,-500.0,0.00016712,3]
[402428392,1768675850285,-500.0,0.00016712,3]
[402428394,1768675850295,-500.0,0.00016712,3]
[402428396,1768675850305,-500.0,0.00016712,3]
[402428398,1768675850315,-500.0,0.00016712,3]
[402428400,1768675850324,-500.0,0.00016712,3]
[402428402,1768675850334,-500.0,0.00016712,3]
[402428404,1768675850343,-500.0,0.00016712,3]
[402428406,1768675850352,-500.0,0.00016712,3]
[402428408,1768675850362,-2427.21,0.00016712,3]
[402428410,1768675850372,-843.85,0.00016712,3]
[402428412,1768675850381,-500.0,0.00016712,3]
[402428414,1768675850390,-2175.59,0.00016712,3]
[402428416,1768675850400,-584.46,0.00016712,3]
[402428418,1768675850409,-500.0,0.00016712,3]
[402428420,1768675850419,-500.0,0.00016712,3]
[402428422,1768675850431,-500.0,0.00016712,3]
[402428424,1768675850441,-500.0,0.00016712,3]
[402428426,1768675850452,-500.0,0.00016712,3]
[402428428,1768675850461,-500.0,0.00016712,3]
[402428430,1768675850470,-500.0,0.00016712,3]
[402428433,1768675850480,-753.6,0.00016712,3]
[402428435,1768675850490,-1210.67,0.00016712,3]
[402428437,1768675850499,-500.0,0.00016712,3]
[402428439,1768675850509,-500.0,0.00016712,3]
[402428441,1768675850518,-1177.08,0.00016712,3]
[402428443,1768675850528,-500.0,0.00016712,3]
[402428445,1768675850538,-500.0,0.00016712,3]
[402428447,1768675850548,-500.0,0.00016712,3]
[402428449,1768675850557,-500.0,0.00016712,3]
[402428451,1768675850566,-733.19,0.00016712,3]
[402428453,1768675850576,-591.87,0.00016712,3]
[402428455,1768675850586,-500.0,0.00016712,3]
[402428457,1768675850596,-553.19,0.00016712,3]
[402428459,1768675850607,-500.0,0.00016712,3]
[402428461,1768675850618,-500.0,0.00016712,3]
[402428464,1768675850628,-500.0,0.00016712,3]
[402428466,1768675850637,-500.0,0.00016712,3]
[402428468,1768675850647,-500.0,0.00016712,3]
[402428470,1768675850658,-500.0,0.00016712,3]
[402428472,1768675850667,-500.0,0.00016712,3]
[402428474,1768675850677,-609.57,0.00016712,3]
[402428476,1768675850687,-500.0,0.00016712,3]
[402428478,1768675850698,-779.45,0.00016712,3]
[402428480,1768675850708,-272.75784748,0.00016712,3]
[402428482,1768675850717,-930.42,0.00016712,3]
[402428484,1768675850727,-500.0,0.00016712,3]
[402428486,1768675850737,-978.58,0.00016712,3]
[402428488,1768675850747,-500.0,0.00016712,3]
[402428490,1768675850756,-503.39,0.00016712,3]
[402428492,1768675850766,-500.0,0.00016712,3]
[402428494,1768675850776,-500.0,0.00016712,3]
[402428496,1768675850786,-500.0,0.00016712,3]
[402428499,1768675850795,-500.0,0.00016712,3]
[402428501,1768675850805,-676.55,0.00016712,3]
[402428503,1768675850815,-500.0,0.00016712,3]
[402428505,1768675850824,-500.0,0.00016712,3]